fUSD/lending_fUSD_20240708
["ID","MTS","AMOUNT","RATE_DAILY","PERIOD"]
[331454106,1720424565907,-546.93,0.00034038,30]
[331454107,1720424565948,-500.0,0.00034038,30]
[331454108,1720424565990,-615.49587144,0.00034038,34]
[331454109,1720424566031,-500.0,0.00034038,31]
[331454110,1720424566072,-1415.03,0.00034038,30]
[331454111,1720424566114,-546.93,0.00034038,31]
[331454112,1720424566159,-1415.03,0.00034038,31]
[331454113,1720424566203,-546.93,0.00034038,32]
[331454114,1720424566247,-503.05240828,0.00034038,32]
[331454115,1720424566291,-500.0,0.00034038,30]
[331454116,1720424566336,-1415.03,0.00034038,32]
[331454117,1720424566382,-546.93,0.00034038,33]
[331454118,1720424566429,-500.0,0.00034038,31]
[331454119,1720424566474,-1415.03,0.00034038,33]
[331454120,1720424566518,-546.93,0.00034038,34]
[331454121,1720424566563,-500.0,0.00034038,32]
[331454122,1720424566606,-1415.03,0.00034038,34]
[331454123,1720424566647,-546.93,0.00034038,35]
[331454124,1720424566690,-500.0,0.00034038,33]
[331454125,1720424566733,-546.93,0.00034038,36]
[331454126,1720424566774,-1415.03,0.00034038,35]
[331454127,1720424566817,-500.0,0.00034038,34]
[331454128,1720424566863,-546.93,0.00034038,37]
[331454129,1720424566906,-1415.03,0.00034038,36]
[331454130,1720424566949,-492.15419251,0.00034038,35]
[331454131,1720424566992,-500.0,0.00034038,30]
[331454132,1720424567034,-546.93,0.00034038,38]
[331454133,1720424567075,-1415.03,0.00034038,37]
[331454134,1720424567120,-500.0,0.00034038,31]
[331454135,1720424567163,-1415.03,0.00034038,38]
[331454136,1720424567206,-4253.85,0.00034038,44]
[331454137,1720424567249,-500.0,0.00034038,32]
[331454138,1720424567294,-1415.03,0.00034038,39]
[331454139,1720424567340,-546.93,0.00034038,39]
[331454140,1720424567386,-4253.85,0.00034038,45]
[331454141,1720424567431,-500.0,0.00034038,33]
[331454142,1720424567473,-1415.03,0.00034038,40]
[331454143,1720424567515,-546.93,0.00034038,40]
[331454144,1720424567557,-4253.85,0.00034038,46]
[331454145,1720424567601,-500.0,0.00034038,30]
[331454146,1720424567646,-1415.03,0.00034038,41]
[331454147,1720424567687,-546.93,0.00034038,41]
[331454148,1720424567730,-4253.85,0.00034038,47]
[331454149,1720424567774,-500.0,0.00034038,31]
[331454150,1720424567896,-1415.03,0.00034038,42]
[331454151,1720424567944,-4253.85,0.00034038,48]
[331454152,1720424567988,-500.0,0.00034038,34]
[331454153,1720424568034,-500.0,0.00034038,32]
[331454154,1720424568078,-546.93,0.00034038,42]
[331454155,1720424568122,-500.0,0.00034038,30]
[331454156,1720424568167,-4253.85,0.00034038,49]
[331454157,1720424568211,-500.0,0.00034038,35]
[331454158,1720424568253,-500.0,0.00034038,33]
[331454159,1720424568294,-776.49,0.00034038,30]
[331454160,1720424568337,-1415.03,0.00034038,43]
[331454161,1720424568383,-4253.85,0.00034038,50]
[331454162,1720424568425,-500.0,0.00034038,36]
[331454163,1720424568468,-500.0,0.00034038,31]
[331454164,1720424568511,-546.93,0.00034038,43]
[331454165,1720424568555,-500.0,0.00034038,34]
[331454166,1720424568597,-776.49,0.00034038,31]
[331454167,1720424568637,-1415.03,0.00034038,44]
[331454168,1720424568677,-4253.85,0.00034038,51]
[331454169,1720424568725,-500.0,0.00034038,37]
[331454170,1720424568768,-500.0,0.00034038,32]
[331454171,1720424568814,-406.5524399,0.00034038,35]
[331454172,1720424568861,-546.93,0.00034038,44]
[331454173,1720424568906,-776.49,0.00034038,32]
[331454174,1720424568953,-1415.03,0.00034038,45]
[331454175,1720424568997,-4253.85,0.00034038,52]
[331454176,1720424569039,-371.59889885,0.00034038,33]
[331454177,1720424569083,-776.49,0.00034038,33]
[331454178,1720424569128,-546.93,0.00034038,45]
[331454179,1720424569171,-331.04617259,0.00034038,38]
[331454180,1720424569217,-4254.08449798,0.00034038,53]
[331454181,1720424569264,-1415.03,0.00034038,46]
[331454182,1720424569309,-776.49,0.00034038,34]
[331454183,1720424569353,-546.93,0.00034038,46]
[331454184,1720424569398,-500.0,0.00034038,30]
[331454185,1720424569442,-1415.03,0.00034038,47]
[331454186,1720424569487,-776.49,0.00034038,35]
[331454187,1720424569532,-546.93,0.00034038,47]
[331454188,1720424569573,-500.0,0.00034038,31]
[331454189,1720424569614,-1415.03,0.00034038,48]
[331454190,1720424569655,-546.93,0.00034038,48]
[331454191,1720424569696,-1415.03,0.00034038,49]
[331454192,1720424569739,-500.0,0.00034038,32]
[331454193,1720424569779,-776.49,0.00034038,36]
[331454194,1720424569823,-546.93,0.00034038,49]
[331454195,1720424569868,-1415.03,0.00034038,50]
[331454196,1720424569910,-500.0,0.00034038,33]
[331454197,1720424569953,-546.93,0.00034038,50]
[331454198,1720424569997,-1415.03,0.00034038,51]
[331454199,1720424570045,-500.0,0.00034038,34]
[331454200,1720424570088,-546.93,0.00034038,51]
[331454201,1720424570133,-776.49,0.00034038,37]
[331454202,1720424570175,-1415.03,0.00034038,52]
[331454203,1720424570226,-500.0,0.00034038,30]
[331454204,1720424570272,-500.0,0.00034038,35]
[331454205,1720424570316,-546.93,0.00034038,52]
[331454206,1720424570368,-776.49,0.00034038,38]
[331454207,1720424570414,-500.0,0.00034038,30]
[331454208,1720424570458,-1415.17032433,0.00034038,53]
[331454209,1720424570502,-500.0,0.00034038,31]
[331454210,1720424570547,-500.0,0.00034038,36]
[331454211,1720424570592,-776.49,0.00034038,39]
[331454212,1720424570635,-500.0,0.00034038,31]
[331454213,1720424570679,-547.08782112,0.00034038,53]
[331454214,1720424570725,-500.0,0.00034038,32]
[331454215,1720424570769,-500.0,0.00034038,37]
[331454216,1720424570810,-500.0,0.00034038,30]
[331454217,1720424570858,-776.49,0.00034038,40]
[331454218,1720424570900,-500.0,0.00034038,33]
[331454219,1720424570944,-500.0,0.00034038,32]
[331454220,1720424570985,-500.0,0.00034038,38]
[331454221,1720424571027,-500.0,0.00034038,31]
[331454222,1720424571069,-776.49,0.00034038,41]
[331454223,1720424571110,-500.0,0.00034038,39]
[331454224,1720424571151,-500.0,0.00034038,33]
[331454225,1720424571192,-500.0,0.00034038,32]
[331454226,1720424571235,-776.49,0.00034038,42]
[331454227,1720424571278,-500.0,0.00034038,40]
[331454228,1720424571319,-500.0,0.00034038,34]
[331454229,1720424571358,-500.0,0.00034038,33]
[331454230,1720424571398,-500.0,0.00034038,34]
[331454231,1720424571440,-776.49,0.00034038,43]
[331454232,1720424571480,-500.0,0.00034038,41]
[331454233,1720424571519,-507.75726346,0.00034038,34]
[331454234,1720424571562,-500.0,0.00034038,35]
[331454235,1720424571604,-500.0,0.00034038,35]
[331454236,1720424571645,-776.49,0.00034038,44]
[331454237,1720424571693,-500.0,0.00034038,42]
[331454238,1720424571740,-342.71244565,0.00034038,36]
[331454239,1720424571781,-776.49,0.00034038,45]
[331454240,1720424571829,-500.0,0.00034038,36]
[331454241,1720424571871,-183.44233509,0.00034038,43]
[331454242,1720424571911,-535.95812057,0.00034038,30]
[331454243,1720424571951,-776.49,0.00034038,46]
[331454244,1720424571993,-776.49,0.00034038,47]
[331454245,1720424572033,-500.0,0.00034038,37]
[331454246,1720424572073,-776.49,0.00034038,48]
[331454247,1720424572113,-500.0,0.00034038,38]
[331454248,1720424572153,-776.49,0.00034038,49]
[331454249,1720424572191,-710.2,0.00034038,30]
[331454250,1720424572231,-776.49,0.00034038,50]
[331454251,1720424572273,-500.0,0.00034038,39]
[331454252,1720424572316,-710.2,0.00034038,31]
[331454253,1720424572497,-776.49,0.00034038,51]
[331454254,1720424572542,-500.0,0.00034038,40]
[331454255,1720424572584,-776.49,0.00034038,52]
[331454256,1720424572626,-710.2,0.00034038,32]
[331454257,1720424572669,-776.69028527,0.00034038,53]
[331454258,1720424572713,-500.0,0.00034038,41]
[331454259,1720424572754,-710.2,0.00034038,33]
[331454260,1720424572795,-500.0,0.00034038,42]
[331454261,1720424572837,-710.2,0.00034038,34]
[331454262,1720424572879,-500.0,0.00034038,43]
[331454263,1720424572922,-710.2,0.00034038,35]
[331454264,1720424572970,-556.55664367,0.00034038,44]
[331454265,1720424573016,-710.2,0.00034038,36]
[331454266,1720424573060,-710.2,0.00034038,37]
[331454267,1720424573106,-710.2,0.00034038,38]
[331454268,1720424573153,-710.2,0.00034038,39]
[331454269,1720424573195,-710.2,0.00034038,40]
[331454270,1720424573241,-1031.73,0.00034038,30]
[331454271,1720424573289,-710.2,0.00034038,41]
[331454272,1720424573334,-1031.73,0.00034038,31]
[331454273,1720424573377,-710.2,0.00034038,42]
[331454274,1720424573421,-1031.73,0.00034038,32]
[331454275,1720424573467,-1492.0,0.00034038,30]
[331454276,1720424573517,-1031.73,0.00034038,33]
[331454277,1720424573570,-710.2,0.00034038,43]
[331454278,1720424573623,-1031.73,0.00034038,34]
[331454279,1720424573673,-1492.0,0.00034038,31]
[331454280,1720424573721,-710.2,0.00034038,44]
[331454281,1720424573766,-1031.73,0.00034038,35]
[331454282,1720424573812,-1492.0,0.00034038,32]
[331454283,1720424573865,-710.2,0.00034038,45]
[331454284,1720424573915,-1031.73,0.00034038,36]
[331454285,1720424573962,-1492.0,0.00034038,33]
[331454286,1720424574007,-710.2,0.00034038,46]
[331454287,1720424574056,-164.145985,0.00034038,30]
[331454288,1720424574102,-1031.73,0.00034038,37]
[331454289,1720424574147,-710.2,0.00034038,47]
[331454290,1720424574192,-500.0,0.00034038,30]
[331454291,1720424574242,-1031.73,0.00034038,38]
[331454292,1720424574292,-500.0,0.00034038,30]
[331454293,1720424574339,-1492.0,0.00034038,34]
[331454294,1720424574385,-500.0,0.00034038,31]
[331454295,1720424574433,-710.2,0.00034038,48]
[331454296,1720424574478,-500.0,0.00034038,31]
[331454297,1720424574524,-1492.0,0.00034038,35]
[331454298,1720424574571,-500.0,0.00034038,32]
[331454299,1720424574620,-710.2,0.00034038,49]
[331454300,1720424574667,-1031.73,0.00034038,39]
[331454301,1720424574713,-500.0,0.00034038,32]
[331454302,1720424574759,-1492.0,0.00034038,36]
[331454303,1720424574804,-710.2,0.00034038,50]
[331454304,1720424574855,-1031.73,0.00034038,40]
[331454305,1720424574903,-500.0,0.00034038,33]
[331454306,1720424574955,-1492.0,0.00034038,37]
[331454307,1720424575010,-710.2,0.00034038,51]
[331454308,1720424575057,-500.0,0.00034038,33]
[331454309,1720424575103,-1031.73,0.00034038,41]
[331454310,1720424575150,-500.0,0.00034038,34]
[331454311,1720424575203,-1492.0,0.00034038,38]
[331454312,1720424575251,-500.0,0.00034038,34]
[331454313,1720424575298,-1031.73,0.00034038,42]
[331454314,1720424575344,-710.2,0.00034038,52]
[331454315,1720424575389,-500.0,0.00034038,35]
[331454316,1720424575437,-565.06,0.00034038,35]
[331454317,1720424575486,-1492.0,0.00034038,39]
[331454318,1720424575535,-1031.73,0.00034038,43]
[331454319,1720424575583,-710.2109369,0.00034038,53]
[331454320,1720424575630,-500.0,0.00034038,36]
[331454321,1720424575676,-1492.0,0.00034038,40]
[331454322,1720424575723,-1031.73,0.00034038,44]
[331454323,1720424575768,-500.0,0.00034038,37]
[331454324,1720424575811,-1492.0,0.00034038,41]
[331454325,1720424575859,-1031.73,0.00034038,45]
[331454326,1720424575903,-1492.0,0.00034038,42]
[331454327,1720424575948,-1031.73,0.00034038,46]
[331454328,1720424575990,-500.0,0.00034038,38]
[331454329,1720424576034,-1492.0,0.00034038,43]
[331454330,1720424576078,-1031.73,0.00034038,47]
[331454331,1720424576121,-500.0,0.00034038,39]
[331454332,1720424576165,-1492.0,0.00034038,44]
[331454333,1720424576215,-1031.73,0.00034038,48]
[331454334,1720424576258,-500.0,0.00034038,40]
[331454335,1720424576303,-1492.0,0.00034038,45]
[331454336,1720424576348,-1031.73,0.00034038,49]
[331454337,1720424576392,-1492.0,0.00034038,46]
[331454338,1720424576435,-1031.73,0.00034038,50]
[331454339,1720424576480,-1492.0,0.00034038,47]
[331454340,1720424576520,-1031.73,0.00034038,51]
[331454341,1720424576562,-1492.0,0.00034038,48]
[331454342,1720424576604,-500.0,0.00034038,30]
[331454343,1720424577076,-500.0,0.00034038,30]
[331454344,1720424577119,-1492.0,0.00034038,49]
[331454345,1720424577161,-572.8,0.00034038,30]
[331454346,1720424577206,-500.0,0.00034038,31]
[331454347,1720424577248,-500.0,0.00034038,31]
[331454348,1720424577290,-1031.73,0.00034038,52]
[331454349,1720424577333,-572.8,0.00034038,31]
[331454350,1720424577376,-1492.0,0.00034038,50]
[331454351,1720424577417,-500.0,0.00034038,32]
[331454352,1720424577462,-500.0,0.00034038,32]
[331454353,1720424577503,-1031.73,0.00034038,53]
[331454354,1720424577545,-1492.0,0.00034038,51]
[331454355,1720424577588,-500.0,0.00034038,33]
[331454356,1720424577630,-572.8,0.00034038,32]
[331454357,1720424577671,-500.0,0.00034038,33]
[331454358,1720424577716,-500.0,0.00034038,34]
[331454359,1720424577759,-572.8,0.00034038,33]
[331454360,1720424577801,-500.0,0.00034038,34]
[331454361,1720424577852,-500.0,0.00034038,35]
[331454362,1720424577898,-1492.0,0.00034038,52]
[331454363,1720424577943,-572.8,0.00034038,34]
[331454364,1720424577990,-500.0,0.00034038,30]
[331454365,1720424578035,-500.0,0.00034038,35]
[331454366,1720424578076,-500.0,0.00034038,36]
[331454367,1720424578118,-1492.07681488,0.00034038,53]
[331454368,1720424578164,-500.0,0.00034038,31]
[331454369,1720424578208,-500.0,0.00034038,30]
[331454370,1720424578251,-500.0,0.00034038,36]
[331454371,1720424578293,-500.0,0.00034038,37]
[331454372,1720424578336,-500.0,0.00034038,32]
[331454373,1720424578378,-500.0,0.00034038,31]
[331454374,1720424578418,-500.0,0.00034038,37]
[331454375,1720424578460,-500.0,0.00034038,33]
[331454376,1720424578506,-500.0,0.00034038,32]
[331454377,1720424578551,-500.0,0.00034038,38]
[331454378,1720424578595,-500.0,0.00034038,38]
[331454379,1720424578640,-202.79514369,0.00034038,34]
[331454380,1720424578686,-500.0,0.00034038,33]
[331454381,1720424578731,-500.0,0.00034038,39]
[331454382,1720424578777,-500.0,0.00034038,39]
[331454383,1720424578828,-500.0,0.00034038,34]
[331454384,1720424578875,-500.0,0.00034038,40]
[331454385,1720424578923,-500.0,0.00034038,40]
[331454386,1720424578972,-500.0,0.00034038,35]
[331454387,1720424579019,-500.0,0.00034038,41]
[331454388,1720424579063,-500.0,0.00034038,41]
[331454389,1720424579102,-572.8,0.00034038,35]
[331454390,1720424579144,-318.55905339,0.00034038,36]
[331454391,1720424579188,-500.0,0.00034038,42]
[331454392,1720424579232,-500.0,0.00034038,42]
[331454393,1720424579273,-572.8,0.00034038,36]
[331454394,1720424579313,-500.0,0.00034038,43]
[331454395,1720424579357,-572.8,0.00034038,37]
[331454396,1720424579398,-500.0,0.00034038,43]
[331454397,1720424579438,-500.0,0.00034038,44]
[331454398,1720424579481,-500.0,0.00034038,30]
[331454399,1720424579526,-500.0,0.00034038,45]
[331454400,1720424579568,-500.0,0.00034038,44]
[331454401,1720424579608,-572.8,0.00034038,38]
[331454402,1720424579651,-500.0,0.00034038,46]
[331454403,1720424579696,-500.0,0.00034038,45]
[331454404,1720424579736,-500.0,0.00034038,31]
[331454405,1720424579777,-500.0,0.00034038,47]
[331454406,1720424579819,-572.8,0.00034038,39]
[331454407,1720424579861,-500.0,0.00034038,46]
[331454408,1720424579903,-500.0,0.00034038,32]
[331454409,1720424579944,-500.0,0.00034038,48]
[331454410,1720424579986,-572.8,0.00034038,40]
[331454411,1720424580028,-500.0,0.00034038,33]
[331454412,1720424580072,-500.0,0.00034038,49]
[331454413,1720424580115,-572.8,0.00034038,41]
[331454414,1720424580160,-508.0,0.00034038,47]
[331454415,1720424580280,-500.0,0.00034038,34]
[331454416,1720424580323,-500.0,0.00034038,50]
[331454417,1720424580367,-572.8,0.00034038,42]
[331454418,1720424580412,-507.30080816,0.00034038,35]
[331454419,1720424580456,-572.8,0.00034038,43]
[331454420,1720424580499,-500.0,0.00034038,51]
[331454421,1720424580540,-572.8,0.00034038,44]
[331454422,1720424580583,-540.92568444,0.00034038,52]
[331454423,1720424580624,-572.8,0.00034038,45]
[331454424,1720424580663,-500.0,0.00034038,30]
[331454425,1720424580707,-536.38311431,0.00034038,31]
[331454426,1720424580750,-572.8,0.00034038,46]
[331454427,1720424580791,-500.0,0.00034038,30]
[331454428,1720424580841,-572.8,0.00034038,47]
[331454429,1720424580882,-500.0,0.00034038,31]
[331454430,1720424580925,-500.0,0.00034038,41]
[331454431,1720424580971,-572.8,0.00034038,48]
[331454432,1720424581018,-500.0,0.00034038,30]
[331454433,1720424581059,-500.0,0.00034038,32]
[331454434,1720424581100,-1036.19,0.00034038,30]
[331454435,1720424581141,-321.3316604,0.00034038,42]
[331454436,1720424581184,-572.8,0.00034038,49]
[331454437,1720424581227,-500.0,0.00034038,31]
[331454438,1720424581269,-1036.19,0.00034038,31]
[331454439,1720424581312,-572.8,0.00034038,50]
[331454440,1720424581352,-500.0,0.00034038,30]
[331454441,1720424581393,-500.0,0.00034038,32]
[331454442,1720424581434,-892.41,0.00034038,30]
[331454443,1720424581478,-572.8,0.00034038,51]
[331454444,1720424581522,-1036.19,0.00034038,32]
[331454445,1720424581564,-500.0,0.00034038,31]
[331454446,1720424581604,-220.98859428,0.00034038,33]
[331454447,1720424581645,-892.41,0.00034038,31]
[331454448,1720424581685,-1036.19,0.00034038,33]
[331454449,1720424581730,-572.8,0.00034038,52]
[331454450,1720424581770,-500.0,0.00034038,32]
[331454451,1720424581810,-892.41,0.00034038,32]
[331454452,1720424581855,-572.91267559,0.00034038,53]
[331454453,1720424581897,-1036.19,0.00034038,34]
[331454454,1720424581942,-500.0,0.00034038,33]
[331454455,1720424581981,-892.41,0.00034038,33]
[331454456,1720424582023,-500.0,0.00034038,34]
[331454457,1720424582064,-1036.19,0.00034038,35]
[331454458,1720424582109,-892.41,0.00034038,34]
[331454459,1720424582152,-500.0,0.00034038,35]
[331454460,1720424582200,-1036.19,0.00034038,36]
[331454461,1720424582241,-1036.19,0.00034038,37]
[331454462,1720424582284,-892.41,0.00034038,35]
[331454463,1720424582328,-1036.19,0.00034038,38]
[331454464,1720424582370,-892.41,0.00034038,36]
[331454465,1720424582413,-892.41,0.00034038,37]
[331454466,1720424582458,-1036.19,0.00034038,39]
[331454467,1720424582500,-892.41,0.00034038,38]
[331454468,1720424582542,-1036.19,0.00034038,40]
[331454469,1720424582583,-500.0,0.00034038,30]
[331454470,1720424582623,-892.41,0.00034038,39]
[331454471,1720424582662,-1036.19,0.00034038,41]
[331454472,1720424582704,-500.0,0.00034038,31]
[331454473,1720424582744,-892.41,0.00034038,40]
[331454474,1720424582784,-500.0,0.00034038,30]
[331454475,1720424582826,-1036.19,0.00034038,42]
[331454476,1720424582868,-500.0,0.00034038,32]
[331454477,1720424582908,-1036.19,0.00034038,43]
[331454478,1720424582951,-500.0,0.00034038,31]
[331454479,1720424582992,-500.0,0.00034038,30]
[331454480,1720424583034,-892.41,0.00034038,41]
[331454481,1720424583076,-500.0,0.00034038,32]
[331454482,1720424583120,-1036.19,0.00034038,44]
[331454483,1720424583163,-500.0,0.00034038,30]
[331454484,1720424583207,-500.0,0.00034038,33]
[331454485,1720424583251,-892.41,0.00034038,42]
[331454486,1720424583294,-500.0,0.00034038,31]
[331454487,1720424583338,-500.0,0.00034038,33]
[331454488,1720424583381,-500.0,0.00034038,31]
[331454489,1720424583424,-500.0,0.00034038,34]
[331454490,1720424583471,-892.41,0.00034038,43]
[331454491,1720424583522,-500.0,0.00034038,34]
[331454492,1720424583571,-500.0,0.00034038,32]
[331454493,1720424583624,-1036.19,0.00034038,45]
[331454494,1720424583673,-247.7,0.00034038,35]
[331454495,1720424583724,-500.0,0.00034038,32]
[331454496,1720424583775,-892.41,0.00034038,44]
[331454497,1720424583824,-500.0,0.00034038,35]
[331454498,1720424583872,-508.08080877,0.00034038,33]
[331454499,1720424583922,-500.0,0.00034038,33]
[331454500,1720424583974,-892.41,0.00034038,45]
[331454501,1720424584024,-1036.19,0.00034038,46]
[331454502,1720424584071,-1036.19,0.00034038,47]
[331454503,1720424584121,-892.41,0.00034038,46]
[331454504,1720424584173,-303.23527748,0.00034038,36]
[331454505,1720424584222,-1036.19,0.00034038,48]
[331454506,1720424584270,-892.41,0.00034038,47]
[331454507,1720424584321,-1036.19,0.00034038,49]
[331454508,1720424584372,-500.0,0.00034038,30]
[331454509,1720424584422,-500.0,0.00034038,30]
[331454510,1720424584471,-1036.19,0.00034038,50]
[331454511,1720424584521,-500.60432471,0.00034038,30]
[331454512,1720424584570,-500.0,0.00034038,30]
[331454513,1720424584616,-500.0,0.00034038,31]
[331454514,1720424584665,-500.0,0.00034038,31]
[331454515,1720424584714,-1036.19,0.00034038,51]
[331454516,1720424584763,-892.41,0.00034038,48]
[331454517,1720424584808,-500.0,0.00034038,31]
[331454518,1720424584861,-500.0,0.00034038,32]
[331454519,1720424585045,-500.0,0.00034038,30]
[331454520,1720424585092,-1036.19,0.00034038,52]
[331454521,1720424585139,-892.41,0.00034038,49]
[331454522,1720424585189,-500.0,0.00034038,32]
[331454523,1720424585237,-3949.71,0.00034038,30]
[331454524,1720424585287,-500.0,0.00034038,33]
[331454525,1720424585336,-500.0,0.00034038,31]
[331454526,1720424585385,-1036.2309002,0.00034038,53]
[331454527,1720424585431,-892.41,0.00034038,50]
[331454528,1720424585479,-500.0,0.00034038,33]
[331454529,1720424585525,-3949.71,0.00034038,31]
[331454530,1720424585571,-500.0,0.00034038,34]
[331454531,1720424585617,-500.0,0.00034038,32]
[331454532,1720424585665,-892.41,0.00034038,51]
[331454533,1720424585717,-500.0,0.00034038,34]
[331454534,1720424585767,-3949.71,0.00034038,32]
[331454535,1720424585815,-500.0,0.00034038,35]
[331454536,1720424585870,-500.0,0.00034038,33]
[331454537,1720424585919,-892.41,0.00034038,52]
[331454538,1720424585966,-500.0,0.00034038,35]
[331454539,1720424586017,-3949.71,0.00034038,33]
[331454540,1720424586066,-500.0,0.00034038,36]
[331454541,1720424586108,-892.45,0.00034038,53]
[331454542,1720424586152,-500.0,0.00034038,34]
[331454543,1720424586199,-3949.71,0.00034038,34]
[331454544,1720424586249,-500.0,0.00034038,37]
[331454545,1720424586308,-500.0,0.00034038,35]
[331454546,1720424586351,-3949.71,0.00034038,35]
[331454547,1720424586392,-569.92040291,0.00034038,36]
[331454548,1720424586436,-500.0,0.00034038,38]
[331454549,1720424586482,-503.15381693,0.00034038,36]
[331454550,1720424586524,-3949.71,0.00034038,36]
[331454551,1720424586568,-500.0,0.00034038,39]
[331454552,1720424586613,-500.0,0.00034038,30]
[331454553,1720424586657,-3949.71,0.00034038,37]
[331454554,1720424586701,-500.0,0.00034038,40]
[331454555,1720424586746,-500.0,0.00034038,31]
[331454556,1720424586791,-1477.59,0.00034038,30]
[331454557,1720424586834,-3949.71,0.00034038,38]
[331454558,1720424586878,-500.0,0.00034038,41]
[331454559,1720424586921,-500.0,0.00034038,32]
[331454560,1720424586965,-1477.59,0.00034038,31]
[331454561,1720424587008,-500.0,0.00034038,42]
[331454562,1720424587054,-3949.71,0.00034038,39]
[331454563,1720424587099,-500.0,0.00034038,33]
[331454564,1720424587142,-1477.59,0.00034038,32]
[331454565,1720424587186,-500.0,0.00034038,43]
[331454566,1720424587234,-3949.71,0.00034038,40]
[331454567,1720424587279,-1477.59,0.00034038,33]
[331454568,1720424587320,-500.0,0.00034038,44]
[331454569,1720424587362,-500.0,0.00034038,34]
[331454570,1720424587405,-3949.71,0.00034038,41]
[331454571,1720424587449,-1477.59,0.00034038,34]
[331454572,1720424587492,-500.0,0.00034038,45]
[331454573,1720424587535,-500.0,0.00034038,30]
[331454574,1720424587580,-1477.59,0.00034038,35]
[331454575,1720424587623,-3949.71,0.00034038,42]
[331454576,1720424587666,-500.0,0.00034038,46]
[331454577,1720424587709,-500.0,0.00034038,31]
[331454578,1720424587753,-500.0,0.00034038,35]
[331454579,1720424587794,-1477.59,0.00034038,36]
[331454580,1720424587836,-3949.71,0.00034038,43]
[331454581,1720424587879,-500.0,0.00034038,47]
[331454582,1720424587922,-500.0,0.00034038,36]
[331454583,1720424587966,-500.0,0.00034038,32]
[331454584,1720424588010,-1477.59,0.00034038,37]
[331454585,1720424588053,-3949.71,0.00034038,44]
[331454586,1720424588101,-500.0,0.00034038,48]
[331454587,1720424588146,-500.0,0.00034038,33]
[331454588,1720424588190,-500.0,0.00034038,37]
[331454589,1720424588238,-1477.59,0.00034038,38]
[331454590,1720424588285,-3949.71,0.00034038,45]
[331454591,1720424588332,-500.0,0.00034038,34]
[331454592,1720424588377,-500.0,0.00034038,49]
[331454593,1720424588423,-1477.59,0.00034038,39]
[331454594,1720424588468,-500.0,0.00034038,38]
[331454595,1720424588516,-3949.71,0.00034038,46]
[331454596,1720424588566,-500.0,0.00034038,50]
[331454597,1720424588599,-500.0,0.00034038,35]
[331454598,1720424588632,-707.82,0.00034038,30]
[331454599,1720424588665,-1477.59,0.00034038,40]
[331454600,1720424588699,-500.0,0.00034038,39]
[331454601,1720424588731,-3949.71,0.00034038,47]
[331454602,1720424588763,-500.0,0.00034038,36]
[331454603,1720424588796,-643.11563275,0.00034038,51]
[331454604,1720424588831,-500.0,0.00034038,40]
[331454605,1720424588863,-3949.71,0.00034038,48]